[Event "Late-Titled-Tuesday-Blitz-June-25-2024"]
[Site "Chess.com"]
[Date "2024.06.25"]
[Round "5"]
[White "MathiasWomacka"]
[Black "Hirna2005"]
[Result "0-1"]
[WhiteElo "2516"]
[BlackElo "2364"]
[TimeControl "180+1"]
[EndTime "14:55:35 PDT"]
[Termination "Hirna2005 won by resignation"]

1. e4 {[%clk 0:03:00.9]} 1... g6 {[%clk 0:03:00.4]} 2. d4 {[%clk 0:02:59.1]}
2... Bg7 {[%clk 0:03:01]} 3. Nc3 {[%clk 0:02:58.8]} 3... d6 {[%clk 0:03:01.6]}
4. f4 {[%clk 0:02:58.6]} 4... a6 {[%clk 0:03:01.7]} 5. Nf3 {[%clk 0:02:58.1]}
5... b5 {[%clk 0:03:01.7]} 6. Bd3 {[%clk 0:02:58.5]} 6... Bb7 {[%clk 0:03:01.8]}
7. O-O {[%clk 0:02:58.1]} 7... Nd7 {[%clk 0:03:01.7]} 8. e5 {[%clk 0:02:58.2]}
8... Nh6 {[%clk 0:03:01.4]} 9. Be4 {[%clk 0:02:47.2]} 9... Bxe4 {[%clk
0:02:53.9]} 10. Nxe4 {[%clk 0:02:48.1]} 10... O-O {[%clk 0:02:49.4]} 11. e6
{[%clk 0:02:45.4]} 11... Nf6 {[%clk 0:02:49.4]} 12. Neg5 {[%clk 0:02:39.8]}
12... Qc8 {[%clk 0:02:49.4]} 13. Qe2 {[%clk 0:02:31.2]} 13... fxe6 {[%clk
0:02:25]} 14. Nxe6 {[%clk 0:02:30.6]} 14... Re8 {[%clk 0:02:20.4]} 15. Nfg5
{[%clk 0:02:15.4]} 15... Nf7 {[%clk 0:02:14.1]} 16. Nxg7 {[%clk 0:02:04.9]}
16... Kxg7 {[%clk 0:02:12]} 17. Ne6+ {[%clk 0:02:02.6]} 17... Kg8 {[%clk
0:02:12.1]} 18. g4 {[%clk 0:01:55]} 18... c5 {[%clk 0:02:01]} 19. dxc5 {[%clk
0:01:49.5]} 19... dxc5 {[%clk 0:02:00.2]} 20. f5 {[%clk 0:01:48.8]} 20... c4
{[%clk 0:01:42.5]} 21. Bf4 {[%clk 0:01:33]} 21... gxf5 {[%clk 0:01:28.4]} 22.
gxf5 {[%clk 0:01:32.6]} 22... Kh8 {[%clk 0:01:28.5]} 23. Bg3 {[%clk 0:01:05.9]}
23... Ra7 {[%clk 0:01:11.8]} 24. Rae1 {[%clk 0:00:54.4]} 24... Rg8 {[%clk
0:01:09.5]} 25. Qf3 {[%clk 0:00:52.4]} 25... Rd7 {[%clk 0:01:05.9]} 26. Kh1
{[%clk 0:00:49.9]} 26... Qa8 {[%clk 0:01:01.4]} 27. Qxa8 {[%clk 0:00:48.3]}
27... Rxa8 {[%clk 0:01:00.8]} 28. Nc5 {[%clk 0:00:42.4]} 28... Rda7 {[%clk
0:00:46.3]} 29. Re2 {[%clk 0:00:40.4]} 29... Nd6 {[%clk 0:00:38.4]} 30. Be5
{[%clk 0:00:31.1]} 30... Rg8 {[%clk 0:00:31.4]} 31. Ne4 {[%clk 0:00:28.4]} 31...
Nxe4 {[%clk 0:00:30.1]} 32. Rxe4 {[%clk 0:00:29.3]} 32... Rd7 {[%clk 0:00:28.3]}
33. Re2 {[%clk 0:00:29.1]} 33... Rg5 {[%clk 0:00:25.6]} 34. Rg2 {[%clk 0:00:27]}
34... Rxg2 {[%clk 0:00:23.1]} 35. Kxg2 {[%clk 0:00:27.9]} 35... Rd2+ {[%clk
0:00:21.4]} 36. Rf2 {[%clk 0:00:25.9]} 36... Rxf2+ {[%clk 0:00:21.4]} 37. Kxf2
{[%clk 0:00:26.8]} 37... Kg7 {[%clk 0:00:21.8]} 38. Kf3 {[%clk 0:00:26.6]} 38...
Kf7 {[%clk 0:00:22.1]} 39. b3 {[%clk 0:00:24.8]} 39... cxb3 {[%clk 0:00:20.1]}
40. cxb3 {[%clk 0:00:24.9]} 40... Nd7 {[%clk 0:00:20.3]} 41. Bd4 {[%clk
0:00:24.1]} 41... e6 {[%clk 0:00:20.6]} 42. Ke4 {[%clk 0:00:24]} 42... exf5+
{[%clk 0:00:20.5]} 43. Kxf5 {[%clk 0:00:24.9]} 43... Nb8 {[%clk 0:00:19.2]} 44.
Ke5 {[%clk 0:00:24.5]} 44... Nc6+ {[%clk 0:00:19.3]} 45. Ke4 {[%clk 0:00:24.9]}
45... Nb4 {[%clk 0:00:18]} 46. a4 {[%clk 0:00:23.5]} 46... bxa4 {[%clk
0:00:17.6]} 47. bxa4 {[%clk 0:00:24.4]} 47... Nc6 {[%clk 0:00:18]} 48. Bc3
{[%clk 0:00:24.2]} 48... Ke6 {[%clk 0:00:18.3]} 49. h3 {[%clk 0:00:24.2]} 49...
Ne7 {[%clk 0:00:18.3]} 50. Kd4 {[%clk 0:00:24]} 50... Nd5 {[%clk 0:00:18]} 51.
Bd2 {[%clk 0:00:23]} 51... Nf6 {[%clk 0:00:17.2]} 52. Be3 {[%clk 0:00:20.6]}
52... Kd6 {[%clk 0:00:15.6]} 53. Bf4+ {[%clk 0:00:20.8]} 53... Kc6 {[%clk
0:00:15.5]} 54. Ke5 {[%clk 0:00:20.7]} 54... Nd5 {[%clk 0:00:15.8]} 55. Bd2
{[%clk 0:00:20]} 55... Nb6 {[%clk 0:00:15.4]} 56. a5 {[%clk 0:00:19.3]} 56...
Nc4+ {[%clk 0:00:15.7]} 57. Kf6 {[%clk 0:00:18.4]} 57... Nxd2 {[%clk 0:00:16.4]}
58. Kg7 {[%clk 0:00:18.6]} 58... Kb5 {[%clk 0:00:17.1]} 59. Kxh7 {[%clk
0:00:18.7]} 59... Kxa5 {[%clk 0:00:17.8]} 60. Kg6 {[%clk 0:00:18.7]} 60... Nf3
{[%clk 0:00:18]} 61. Kf5 {[%clk 0:00:18.2]} 61... Kb4 {[%clk 0:00:18.6]} 62. Kf4
{[%clk 0:00:18.2]} 62... Nd4 {[%clk 0:00:18.9]} 63. h4 {[%clk 0:00:17.9]} 63...
Ne6+ {[%clk 0:00:19.2]} 64. Kf5 {[%clk 0:00:17.1]} 64... Nf8 {[%clk 0:00:19.8]}
65. Kf6 {[%clk 0:00:16.4]} 65... a5 {[%clk 0:00:20.5]} 66. Kg7 {[%clk
0:00:16.7]} 66... Ne6+ {[%clk 0:00:19.5]} 67. Kf7 {[%clk 0:00:15.9]} 67... a4
{[%clk 0:00:20.1]} 68. Kxe6 {[%clk 0:00:15.8]} 68... a3 {[%clk 0:00:20.8]} 69.
h5 {[%clk 0:00:16.3]} 69... a2 {[%clk 0:00:21.5]} 70. h6 {[%clk 0:00:16.5]}
70... a1=Q {[%clk 0:00:22.2]} 71. Kf7 {[%clk 0:00:16.2]} 71... Qh8 {[%clk
0:00:22.9]} 72. Kg6 {[%clk 0:00:16]} 72... Kc5 {[%clk 0:00:23.6]} 73. h7 {[%clk
0:00:16.3]} 73... Kd6 {[%clk 0:00:24]} 74. Kh6 {[%clk 0:00:16.3]} 74... Ke7
{[%clk 0:00:23.9]} 75. Kg6 {[%clk 0:00:17.2]} 75... Ke8 {[%clk 0:00:23.7]} 76.
Kh6 {[%clk 0:00:17.1]} 76... Kf7 {[%clk 0:00:23.9]} 77. Kg5 {[%clk 0:00:17.4]}
77... Kg7 {[%clk 0:00:24.1]} 0-1

[Event "Late-Titled-Tuesday-Blitz-June-25-2024"]
[Site "Chess.com"]
[Date "2024.06.25"]
[Round "5"]
[White "BillieKimbah"]
[Black "karinachess1"]
[Result "0-1"]
[WhiteElo "2910"]
[BlackElo "2695"]
[TimeControl "180+1"]
[EndTime "14:55:37 PDT"]
[Termination "karinachess1 won on time"]

1. e4 {[%clk 0:03:00.9]} 1... e5 {[%clk 0:02:59.5]} 2. Bc4 {[%clk 0:02:58.6]}
2... Nf6 {[%clk 0:02:58.2]} 3. Qf3 {[%clk 0:02:58.3]} 3... Be7 {[%clk
0:02:54.7]} 4. Ne2 {[%clk 0:02:57.7]} 4... O-O {[%clk 0:02:52.3]} 5. Nbc3 {[%clk
0:02:48.5]} 5... c6 {[%clk 0:02:52]} 6. a3 {[%clk 0:02:38.8]} 6... b5 {[%clk
0:02:46.1]} 7. Ba2 {[%clk 0:02:36]} 7... d6 {[%clk 0:02:46.5]} 8. h3 {[%clk
0:02:27.9]} 8... Nbd7 {[%clk 0:02:44.7]} 9. O-O {[%clk 0:02:26.5]} 9... Qc7
{[%clk 0:02:33]} 10. Ng3 {[%clk 0:02:23.4]} 10... Nc5 {[%clk 0:02:29.2]} 11. d3
{[%clk 0:02:21.2]} 11... Be6 {[%clk 0:02:19.7]} 12. Nf5 {[%clk 0:02:18.9]} 12...
Bxa2 {[%clk 0:01:57.7]} 13. Rxa2 {[%clk 0:02:18.1]} 13... Ne6 {[%clk 0:01:58.6]}
14. Be3 {[%clk 0:02:14.2]} 14... g6 {[%clk 0:01:47.3]} 15. Nxe7+ {[%clk
0:02:09.7]} 15... Qxe7 {[%clk 0:01:46.8]} 16. Raa1 {[%clk 0:01:53]} 16... Nd7
{[%clk 0:01:46.6]} 17. b4 {[%clk 0:01:50.1]} 17... a5 {[%clk 0:01:39.2]} 18.
Rfb1 {[%clk 0:01:49.8]} 18... Ra6 {[%clk 0:01:12.1]} 19. Qd1 {[%clk 0:01:44.7]}
19... Rfa8 {[%clk 0:01:11.4]} 20. Qc1 {[%clk 0:01:38.8]} 20... Ndf8 {[%clk
0:00:42.2]} 21. Qb2 {[%clk 0:01:37.1]} 21... h5 {[%clk 0:00:32.6]} 22. a4 {[%clk
0:01:24]} 22... axb4 {[%clk 0:00:31.6]} 23. Qxb4 {[%clk 0:01:24.9]} 23... bxa4
{[%clk 0:00:30.1]} 24. Rxa4 {[%clk 0:01:22.5]} 24... Rxa4 {[%clk 0:00:29.9]} 25.
Nxa4 {[%clk 0:01:23.4]} 25... c5 {[%clk 0:00:26.9]} 26. Qc4 {[%clk 0:01:17.9]}
26... Qe8 {[%clk 0:00:16.2]} 27. Nc3 {[%clk 0:01:15.3]} 27... Rb8 {[%clk
0:00:16.6]} 28. Ra1 {[%clk 0:01:09.7]} 28... Ra8 {[%clk 0:00:16.8]} 29. Ra6
{[%clk 0:01:04.4]} 29... Rxa6 {[%clk 0:00:11.2]} 30. Qxa6 {[%clk 0:01:05.3]}
30... Qb8 {[%clk 0:00:11.8]} 31. Nb5 {[%clk 0:01:04.4]} 31... Nd4 {[%clk
0:00:07.2]} 32. c4 {[%clk 0:00:56.1]} 32... Nxb5 {[%clk 0:00:06.4]} 33. cxb5
{[%clk 0:00:56.9]} 33... Nd7 {[%clk 0:00:07.2]} 34. Qc6 {[%clk 0:00:56.2]} 34...
Nb6 {[%clk 0:00:08]} 35. Bg5 {[%clk 0:00:55]} 35... Kg7 {[%clk 0:00:08.1]} 36.
Be7 {[%clk 0:00:54.3]} 36... Nc8 {[%clk 0:00:08.4]} 37. Bd8 {[%clk 0:00:54]}
37... Na7 {[%clk 0:00:08.6]} 38. Qd7 {[%clk 0:00:46]} 38... Nxb5 {[%clk
0:00:08.6]} 39. Qe7 {[%clk 0:00:45.9]} 39... Nd4 {[%clk 0:00:07.1]} 40. Kh2
{[%clk 0:00:40.2]} 40... Ne6 {[%clk 0:00:07]} 41. Qf6+ {[%clk 0:00:40.3]} 41...
Kg8 {[%clk 0:00:06.9]} 42. Be7 {[%clk 0:00:38.7]} 42... Qc7 {[%clk 0:00:06.6]}
43. g3 {[%clk 0:00:36.5]} 43... Qd7 {[%clk 0:00:06.7]} 44. h4 {[%clk 0:00:31.9]}
44... Qc7 {[%clk 0:00:05.4]} 45. Kg2 {[%clk 0:00:31.9]} 45... Qd7 {[%clk
0:00:05.5]} 46. f3 {[%clk 0:00:30.7]} 46... Qc6 {[%clk 0:00:04.6]} 47. Kh2
{[%clk 0:00:20.2]} 47... Qb6 {[%clk 0:00:04.9]} 48. Kg2 {[%clk 0:00:11.4]} 48...
Qa6 {[%clk 0:00:04.8]} 49. g4 {[%clk 0:00:04.4]} 49... Qxd3 {[%clk 0:00:05.1]}
50. gxh5 {[%clk 0:00:04.2]} 50... Nf4+ {[%clk 0:00:05.3]} 51. Kg3 {[%clk
0:00:04.3]} 51... Ne2+ {[%clk 0:00:05.4]} 52. Kf2 {[%clk 0:00:04.3]} 52... Nf4
{[%clk 0:00:05]} 53. Kg3 {[%clk 0:00:01.4]} 53... Qe2 {[%clk 0:00:05.5]} 0-1

[Event "Late-Titled-Tuesday-Blitz-June-25-2024"]
[Site "Chess.com"]
[Date "2024.06.25"]
[Round "5"]
[White "ArchibaldCerveza29"]
[Black "theoneandonlydaaevik"]
[Result "1/2-1/2"]
[WhiteElo "2406"]
[BlackElo "2591"]
[TimeControl "180+1"]
[EndTime "14:55:38 PDT"]
[Termination "Game drawn by repetition"]

1. e4 {[%clk 0:03:00.9]} 1... c6 {[%clk 0:02:57.2]} 2. Nc3 {[%clk 0:02:57.3]}
2... d5 {[%clk 0:02:57.2]} 3. Nf3 {[%clk 0:02:57.9]} 3... dxe4 {[%clk
0:02:50.3]} 4. Nxe4 {[%clk 0:02:58.8]} 4... Nd7 {[%clk 0:02:45.1]} 5. Bc4 {[%clk
0:02:49.4]} 5... e6 {[%clk 0:02:40.9]} 6. Qe2 {[%clk 0:02:45.4]} 6... Ngf6
{[%clk 0:02:40.4]} 7. Neg5 {[%clk 0:02:39.5]} 7... Nb6 {[%clk 0:02:36.7]} 8. Ne5
{[%clk 0:02:36.8]} 8... Qc7 {[%clk 0:02:05.1]} 9. Nexf7 {[%clk 0:02:28.8]} 9...
Nxc4 {[%clk 0:01:59.9]} 10. Nxh8 {[%clk 0:02:24.1]} 10... Nd6 {[%clk 0:01:54.5]}
11. O-O {[%clk 0:02:17.1]} 11... Qe7 {[%clk 0:01:48.2]} 12. Re1 {[%clk
0:02:14.5]} 12... Bd7 {[%clk 0:01:46.9]} 13. Nxe6 {[%clk 0:02:05.3]} 13... Bxe6
{[%clk 0:01:39.6]} 14. Qxe6 {[%clk 0:02:03.4]} 14... Qxe6 {[%clk 0:01:34]} 15.
Rxe6+ {[%clk 0:02:04.3]} 15... Kd7 {[%clk 0:01:34.6]} 16. Rxd6+ {[%clk
0:01:54.7]} 16... Bxd6 {[%clk 0:01:34.6]} 17. Nf7 {[%clk 0:01:55.3]} 17... Re8
{[%clk 0:01:33.3]} 18. Kf1 {[%clk 0:01:54.8]} 18... Bc7 {[%clk 0:01:10.3]} 19.
d4 {[%clk 0:01:46.7]} 19... Ng4 {[%clk 0:01:09.3]} 20. f3 {[%clk 0:01:39.6]}
20... Nxh2+ {[%clk 0:00:22.9]} 21. Kf2 {[%clk 0:01:39.2]} 21... h5 {[%clk
0:00:23.3]} 22. Bg5 {[%clk 0:01:27.6]} 22... Rf8 {[%clk 0:00:19.8]} 23. Ne5+
{[%clk 0:01:16]} 23... Bxe5 {[%clk 0:00:19.9]} 24. dxe5 {[%clk 0:01:16.7]} 24...
Ng4+ {[%clk 0:00:20.8]} 25. Kg3 {[%clk 0:01:15]} 25... Nxe5 {[%clk 0:00:21.7]}
26. Rd1+ {[%clk 0:01:13.2]} 26... Ke6 {[%clk 0:00:20.3]} 27. Re1 {[%clk
0:01:12.7]} 27... Kf5 {[%clk 0:00:20.3]} 28. Be7 {[%clk 0:00:46.7]} 28... Rf7
{[%clk 0:00:14.2]} 29. Bc5 {[%clk 0:00:35.8]} 29... b6 {[%clk 0:00:13.7]} 30.
Bd4 {[%clk 0:00:35.9]} 30... Nc4 {[%clk 0:00:11.7]} 31. b3 {[%clk 0:00:35]}
31... Nd6 {[%clk 0:00:11.8]} 32. Re5+ {[%clk 0:00:34.5]} 32... Kg6 {[%clk
0:00:12.2]} 33. Re6+ {[%clk 0:00:35.1]} 33... Rf6 {[%clk 0:00:09.3]} 34. Bxf6
{[%clk 0:00:34.3]} 34... Nf5+ {[%clk 0:00:09.9]} 35. Kf4 {[%clk 0:00:32.7]}
35... gxf6 {[%clk 0:00:10.8]} 36. Rxc6 {[%clk 0:00:32.4]} 36... Nd4 {[%clk
0:00:11.2]} 37. Rc4 {[%clk 0:00:30.8]} 37... Ne2+ {[%clk 0:00:06.7]} 38. Ke3
{[%clk 0:00:29.3]} 38... Ng3 {[%clk 0:00:07.4]} 39. a4 {[%clk 0:00:26.1]} 39...
Nf5+ {[%clk 0:00:07.1]} 40. Kf2 {[%clk 0:00:25.5]} 40... h4 {[%clk 0:00:07.1]}
41. b4 {[%clk 0:00:23.5]} 41... Nd6 {[%clk 0:00:03.4]} 42. Rc7 {[%clk
0:00:23.5]} 42... a5 {[%clk 0:00:02.7]} 43. bxa5 {[%clk 0:00:21.2]} 43... bxa5
{[%clk 0:00:03.6]} 44. Ra7 {[%clk 0:00:20.5]} 44... Nc4 {[%clk 0:00:03.4]} 45.
Rc7 {[%clk 0:00:20.8]} 45... Nb2 {[%clk 0:00:03.5]} 46. Rc5 {[%clk 0:00:18]}
46... Nxa4 {[%clk 0:00:03.6]} 47. Rxa5 {[%clk 0:00:18.7]} 47... Nb6 {[%clk
0:00:04]} 48. Rb5 {[%clk 0:00:19]} 48... Nc4 {[%clk 0:00:04.4]} 49. Rc5 {[%clk
0:00:18.9]} 49... Ne5 {[%clk 0:00:04.2]} 50. c4 {[%clk 0:00:19.6]} 50... Kf5
{[%clk 0:00:03.8]} 51. Rc8 {[%clk 0:00:18.2]} 51... Ke6 {[%clk 0:00:03.3]} 52.
c5 {[%clk 0:00:16.8]} 52... Kd7 {[%clk 0:00:02.8]} 53. Rh8 {[%clk 0:00:15.8]}
53... Nd3+ {[%clk 0:00:03.3]} 54. Ke3 {[%clk 0:00:15.7]} 54... Nxc5 {[%clk
0:00:04.2]} 55. Rxh4 {[%clk 0:00:16]} 55... Ke6 {[%clk 0:00:05.1]} 56. Rh7
{[%clk 0:00:14.7]} 56... Nd7 {[%clk 0:00:04.8]} 57. f4 {[%clk 0:00:13.7]} 57...
Nb6 {[%clk 0:00:04.3]} 58. g4 {[%clk 0:00:14]} 58... Nd5+ {[%clk 0:00:04.1]} 59.
Ke4 {[%clk 0:00:14.5]} 59... Nc3+ {[%clk 0:00:04.2]} 60. Kd3 {[%clk 0:00:14.9]}
60... Nd5 {[%clk 0:00:04.6]} 61. Rb7 {[%clk 0:00:12.4]} 61... Nxf4+ {[%clk
0:00:04.8]} 62. Ke4 {[%clk 0:00:12.9]} 62... Ng6 {[%clk 0:00:04.6]} 63. Rb6+
{[%clk 0:00:12.7]} 63... Kf7 {[%clk 0:00:05]} 64. Kf5 {[%clk 0:00:13]} 64...
Nh4+ {[%clk 0:00:05.5]} 65. Ke4 {[%clk 0:00:12.8]} 65... Ng6 {[%clk 0:00:06.1]}
66. Rb7+ {[%clk 0:00:13]} 66... Ke6 {[%clk 0:00:06.1]} 67. Rb6+ {[%clk
0:00:12.8]} 67... Kf7 {[%clk 0:00:06.3]} 1/2-1/2

[Event "Late-Titled-Tuesday-Blitz-June-25-2024"]
[Site "Chess.com"]
[Date "2024.06.25"]
[Round "5"]
[White "FloMasterAAK"]
[Black "Talent-OF-Slovenia"]
[Result "0-1"]
[WhiteElo "2612"]
[BlackElo "2465"]
[TimeControl "180+1"]
[EndTime "14:55:45 PDT"]
[Termination "Talent-OF-Slovenia won by checkmate"]

1. Nf3 {[%clk 0:03:00.9]} 1... c6 {[%clk 0:02:58.6]} 2. c4 {[%clk 0:03:01]} 2...
d5 {[%clk 0:02:58.3]} 3. e3 {[%clk 0:03:01.4]} 3... Nf6 {[%clk 0:02:57.2]} 4.
Nc3 {[%clk 0:03:01.7]} 4... b6 {[%clk 0:02:55.3]} 5. b3 {[%clk 0:02:59.3]} 5...
e6 {[%clk 0:02:53.7]} 6. Bb2 {[%clk 0:02:59.4]} 6... Bb7 {[%clk 0:02:51.7]} 7.
g3 {[%clk 0:02:58.6]} 7... Nbd7 {[%clk 0:02:50.1]} 8. d4 {[%clk 0:02:57.9]} 8...
c5 {[%clk 0:02:46.7]} 9. Bg2 {[%clk 0:02:52.6]} 9... dxc4 {[%clk 0:02:43.8]} 10.
bxc4 {[%clk 0:02:50.3]} 10... cxd4 {[%clk 0:02:43.2]} 11. exd4 {[%clk
0:02:50.5]} 11... Rc8 {[%clk 0:02:41.8]} 12. Qb3 {[%clk 0:02:40.7]} 12... Qc7
{[%clk 0:02:40.4]} 13. Nb5 {[%clk 0:02:32.6]} 13... Qxc4 {[%clk 0:02:39.5]} 14.
Qxc4 {[%clk 0:02:30.5]} 14... Rxc4 {[%clk 0:02:40.4]} 15. O-O {[%clk 0:02:14.3]}
15... Rb4 {[%clk 0:02:32.6]} 16. Nc7+ {[%clk 0:02:03.7]} 16... Kd8 {[%clk
0:02:31.4]} 17. Ba3 {[%clk 0:02:01.2]} 17... Kxc7 {[%clk 0:02:25.1]} 18. Bxb4
{[%clk 0:02:01]} 18... Bxb4 {[%clk 0:02:24.7]} 19. a3 {[%clk 0:02:00.8]} 19...
Bd6 {[%clk 0:02:18.7]} 20. Rac1+ {[%clk 0:01:59.3]} 20... Kb8 {[%clk 0:02:18.1]}
21. Ng5 {[%clk 0:01:56]} 21... Rf8 {[%clk 0:02:15.2]} 22. Bxb7 {[%clk
0:01:42.5]} 22... Kxb7 {[%clk 0:02:14.1]} 23. a4 {[%clk 0:01:39.7]} 23... h6
{[%clk 0:02:13.6]} 24. Nf3 {[%clk 0:01:38.8]} 24... Nd5 {[%clk 0:02:13]} 25. h4
{[%clk 0:01:30.6]} 25... a6 {[%clk 0:02:10.8]} 26. Rb1 {[%clk 0:01:22.1]} 26...
Rc8 {[%clk 0:02:08.8]} 27. Rfc1 {[%clk 0:01:20]} 27... Rxc1+ {[%clk 0:02:04.8]}
28. Rxc1 {[%clk 0:01:20]} 28... b5 {[%clk 0:02:04.7]} 29. axb5 {[%clk
0:01:20.4]} 29... axb5 {[%clk 0:02:04.8]} 30. Nd2 {[%clk 0:01:20.5]} 30... N7b6
{[%clk 0:01:58]} 31. Rb1 {[%clk 0:01:18.8]} 31... b4 {[%clk 0:01:55.4]} 32. Kf1
{[%clk 0:01:16.3]} 32... Be7 {[%clk 0:01:42.4]} 33. Nb3 {[%clk 0:01:13.1]} 33...
Nc4 {[%clk 0:01:27.8]} 34. Rc1 {[%clk 0:01:04.3]} 34... Nc3 {[%clk 0:01:26.3]}
35. Ra1 {[%clk 0:01:00]} 35... Na3 {[%clk 0:01:21.5]} 36. Kg2 {[%clk 0:00:49.1]}
36... Kb6 {[%clk 0:01:19.3]} 37. Re1 {[%clk 0:00:46.1]} 37... Bf6 {[%clk
0:01:15.3]} 38. g4 {[%clk 0:00:43.6]} 38... Bxh4 {[%clk 0:01:12.6]} 39. Re5
{[%clk 0:00:41.6]} 39... Nd5 {[%clk 0:01:08.5]} 40. Re1 {[%clk 0:00:37.7]} 40...
Bf6 {[%clk 0:01:06.7]} 41. Rc1 {[%clk 0:00:37.4]} 41... Nc3 {[%clk 0:01:06.5]}
42. f4 {[%clk 0:00:36.7]} 42... Kb5 {[%clk 0:01:04.7]} 43. Re1 {[%clk
0:00:31.7]} 43... Kc4 {[%clk 0:01:02.7]} 44. Na5+ {[%clk 0:00:31.4]} 44... Kxd4
{[%clk 0:01:02.2]} 45. Kf3 {[%clk 0:00:26.1]} 45... Nc2 {[%clk 0:00:57.8]} 46.
Rg1 {[%clk 0:00:20.5]} 46... Kd3 {[%clk 0:00:57.2]} 47. g5 {[%clk 0:00:19.3]}
47... Nd4+ {[%clk 0:00:57.4]} 48. Kg4 {[%clk 0:00:19]} 48... hxg5 {[%clk
0:00:57.3]} 49. fxg5 {[%clk 0:00:19.9]} 49... Bxg5 {[%clk 0:00:55.2]} 50. Kxg5
{[%clk 0:00:19.6]} 50... Nf3+ {[%clk 0:00:54.2]} 51. Kf4 {[%clk 0:00:16.4]}
51... Nxg1 {[%clk 0:00:55.1]} 52. Kg3 {[%clk 0:00:16.8]} 52... Nge2+ {[%clk
0:00:54.5]} 53. Kf2 {[%clk 0:00:17.3]} 53... Nd4 {[%clk 0:00:55.4]} 54. Ke1
{[%clk 0:00:17.6]} 54... b3 {[%clk 0:00:56.3]} 55. Nxb3 {[%clk 0:00:16.5]} 55...
Nxb3 {[%clk 0:00:57.2]} 56. Kf2 {[%clk 0:00:17.4]} 56... Nd4 {[%clk 0:00:56.9]}
57. Kg3 {[%clk 0:00:17.6]} 57... Ke3 {[%clk 0:00:57.1]} 58. Kg4 {[%clk 0:00:18]}
58... Ne4 {[%clk 0:00:55.8]} 59. Kh3 {[%clk 0:00:18.1]} 59... f5 {[%clk
0:00:52.3]} 60. Kg2 {[%clk 0:00:19]} 60... g5 {[%clk 0:00:51.7]} 61. Kf1 {[%clk
0:00:19.6]} 61... Nc2 {[%clk 0:00:51.1]} 62. Kg2 {[%clk 0:00:20.5]} 62... Ke2
{[%clk 0:00:51.3]} 63. Kg1 {[%clk 0:00:20.1]} 63... Ne3 {[%clk 0:00:50.9]} 64.
Kh2 {[%clk 0:00:20.3]} 64... Kf3 {[%clk 0:00:50.4]} 65. Kh3 {[%clk 0:00:21.2]}
65... Nf2+ {[%clk 0:00:48.4]} 66. Kh2 {[%clk 0:00:22.1]} 66... Nfg4+ {[%clk
0:00:46.3]} 67. Kg1 {[%clk 0:00:23]} 67... Kg3 {[%clk 0:00:35]} 68. Kh1 {[%clk
0:00:23.9]} 68... Nf1 {[%clk 0:00:20.5]} 69. Kg1 {[%clk 0:00:24.8]} 69... Nfh2
{[%clk 0:00:20.6]} 70. Kh1 {[%clk 0:00:22.7]} 70... e5 {[%clk 0:00:21]} 71. Kg1
{[%clk 0:00:22.6]} 71... e4 {[%clk 0:00:21.6]} 72. Kh1 {[%clk 0:00:23.3]} 72...
e3 {[%clk 0:00:21.9]} 73. Kg1 {[%clk 0:00:24.2]} 73... e2 {[%clk 0:00:22]} 74.
Kh1 {[%clk 0:00:25.1]} 74... e1=N {[%clk 0:00:21.1]} 75. Kg1 {[%clk 0:00:25.6]}
75... Nef3+ {[%clk 0:00:20.7]} 76. Kh1 {[%clk 0:00:26.5]} 76... Nf2# {[%clk
0:00:21.6]} 0-1